bitfinex/quotes_SOLUSD_20260211
["timestamp","ask_amount","ask_price","bid_price","bid_amount"]
[1770785629744,1.37790301,82.029,81.991,1.99397088]
[1770785629941,1.37790301,82.027,81.991,1.99397088]
[1770785630141,30.0,82.027,81.991,1.99397088]
[1770785630342,30.0,82.027,82.001,2.01914515]
[1770785630853,9.80436788,82.01,81.984,2.01914515]
[1770785631259,1.38160037,82.009,81.976,2.01914515]
[1770785631443,9.80436788,82.0,81.976,2.01914515]
[1770785632047,30.0,82.006,81.981,2.01914515]
[1770785632268,22.21200763,82.006,81.99,9.80436788]
[1770785632449,2.21868575,82.009,81.97,9.80436788]
[1770785632765,42.67048917,82.024,81.97,12.19949731]
[1770785632766,2.21868575,81.999,81.97,12.19949731]
[1770785632969,2.21868575,81.999,81.977,12.19854349]
[1770785633257,2.21868575,82.009,81.977,12.19854349]
[1770785633457,2.21868575,82.019,81.98,9.80436788]
[1770785634053,2.21868575,82.019,81.981,12.1979483]
[1770785634254,9.80436788,82.03,81.99,9.80436788]
[1770785634461,2.21868575,82.038,81.981,42.69281906]
[1770785634646,2.21868575,82.038,82.0,9.80436788]
[1770785635056,2.21868575,82.038,82.01,9.80436788]
[1770785635344,9.80436788,82.05,82.011,0.0223615]
[1770785635345,2.21868575,82.046,82.011,0.0223615]
[1770785635663,2.21868575,82.029,81.99,9.80436788]
[1770785635971,2.21868575,82.029,81.991,0.0223615]
[1770785636273,9.80436788,82.02,81.991,0.0223615]
[1770785636567,2.21868575,82.039,82.001,0.02956784]
[1770785637043,2.21868575,82.039,81.981,30.49487076]
[1770785637044,2.21868575,82.039,82.01,9.80436788]
[1770785637242,2.21868575,82.047,82.011,0.02956784]
[1770785637442,2.21868575,82.047,82.01,9.80436788]
[1770785637650,2.21868575,82.039,82.003,0.03670497]
[1770785638141,2.21868575,82.029,81.991,12.19646058]
[1770785638470,2.21868575,82.029,81.992,0.04377416]
[1770785638648,2.21868575,82.019,81.981,30.49487076]
[1770785639267,2.21868575,82.019,81.98,49.56436788]
[1770785639465,2.21868575,82.019,81.98,39.76]
[1770785639682,2.21868575,81.999,81.973,12.19913772]
[1770785639968,2.21868575,81.999,81.977,12.19845087]
[1770785640149,2.21868575,81.999,81.964,0.05079464]
[1770785640543,2.21868575,81.997,81.961,12.20092483]
[1770785640765,2.21868575,82.005,81.97,0.05770952]
[1770785640969,2.21868575,82.005,81.971,0.05770952]
[1770785641568,9.80436788,82.01,81.971,0.05770952]
[1770785641757,60.94736585,82.038,81.97,9.80436788]
[1770785641758,2.21868575,82.027,81.991,0.06454241]
[1770785641946,12.19095918,82.028,81.99,9.80436788]
[1770785642266,2.21868575,82.019,81.991,12.19646058]
[1770785642567,2.21868575,82.019,81.986,12.19711333]
[1770785642745,2.21868575,82.019,82.0,9.80436788]
[1770785643170,2.21868575,82.033,82.0,9.80436788]
[1770785643751,2.21868575,82.032,82.0,9.80436788]
[1770785644066,12.19021613,82.033,81.97,5.13032502]
[1770785644067,2.21868575,82.002,81.97,9.80436788]
[1770785644265,2.21868575,82.002,81.973,12.19899303]
[1770785644968,2.21868575,82.002,81.98,9.80436788]
[1770785645262,30.0,82.003,81.98,9.80436788]
[1770785645468,2.21868575,82.02,81.99,9.80436788]
[1770785645672,2.26417029,82.018,81.99,9.80436788]
[1770785645866,2.26417029,82.009,81.965,12.20028926]
[1770785646042,2.26417029,82.009,81.957,30.50355688]
[1770785646043,2.26417029,81.989,81.936,0.2552332]
[1770785646247,9.80436788,82.02,81.9,9.90436788]
[1770785646248,2.26417029,81.949,81.9,0.1]
[1770785646442,42.69959008,81.968,81.84,0.04]
[1770785646443,5.36086188,81.903,81.84,0.04]
[1770785646672,2.24417029,81.849,81.81,9.80436788]
[1770785646966,9.80436788,81.82,81.786,2.26744699]
[1770785647147,16.17394775,81.81,81.771,2.52268019]
[1770785647345,9.80436788,81.84,81.791,12.22628406]
[1770785647554,9.80436788,81.84,81.771,0.2552332]
[1770785647555,2.03751992,81.819,81.774,12.22868303]
[1770785647762,2.03751992,81.832,81.791,12.22628406]
[1770785648174,2.03751992,81.849,81.81,9.80436788]
[1770785648347,2.03751992,81.875,81.79,2.01914515]
[1770785648546,2.03751992,81.859,81.82,9.80436788]
[1770785648752,9.80436788,81.85,81.811,12.22329515]
[1770785649071,2.03751992,81.859,81.81,22.02770894]
[1770785649274,2.03751992,81.857,81.79,2.01914515]
[1770785649567,2.03751992,81.819,81.79,2.01914515]
[1770785649768,9.80436788,81.8,81.767,2.01914515]
[1770785650063,9.80436788,81.82,81.776,2.01914515]
[1770785650263,2.03751992,81.819,81.78,9.80436788]
[1770785650464,2.03751992,81.819,81.781,2.01914515]
[1770785650672,5.13032502,81.866,81.781,2.01914515]
[1770785650673,2.03751992,81.835,81.8,9.80436788]
[1770785650970,2.03751992,81.835,81.797,2.01914515]
[1770785651165,9.80436788,81.81,81.778,2.01914515]
[1770785651370,2.03751992,81.809,81.772,2.01914515]
[1770785651866,2.03751992,81.829,81.78,11.82351303]
[1770785652069,2.03751992,81.829,81.777,12.22837717]
[1770785652070,2.03751992,81.829,81.79,9.80436788]
[1770785652266,2.03751992,81.829,81.791,2.01914515]
[1770785652469,2.03751992,81.829,81.792,14.24527973]
[1770785652773,36.22,81.87,81.801,2.01914515]
[1770785652774,9.80436788,81.84,81.801,2.01914515]
[1770785653274,2.03751992,81.848,81.801,2.01914515]
[1770785653759,9.80436788,81.84,81.801,2.01914515]
[1770785654161,2.03751992,81.839,81.792,42.79147104]
[1770785654369,2.03751992,81.839,81.793,2.01914515]
[1770785654870,36.2,81.87,81.792,42.79147104]
[1770785654871,9.84204266,81.86,81.821,2.01914515]
[1770785655081,9.84204266,81.86,81.801,5.13032502]
[1770785655082,2.03751992,81.869,81.831,2.01914515]
[1770785655379,2.03751992,81.869,81.84,9.84204266]
[1770785655668,2.03751992,81.894,81.86,9.84204266]
[1770785655879,2.03751992,81.906,81.87,9.84204266]
[1770785656070,2.03751992,81.906,81.871,2.01914515]
[1770785656253,2.03751992,81.919,81.88,9.84204266]
[1770785656456,12.20732928,81.918,81.881,12.21284547]
[1770785656669,2.03751992,81.917,81.875,14.23280447]
[1770785656868,2.03751992,81.917,81.89,9.84204266]
[1770785657072,30.5106519,81.939,81.89,9.84204266]
[1770785657073,2.03751992,81.929,81.89,9.84204266]
[1770785657378,12.20432205,81.939,81.9,9.84204266]
[1770785657566,2.03751992,81.938,81.891,2.01914515]
[1770785657759,9.84204266,81.93,81.891,2.01914515]
[1770785657974,2.03751992,81.938,81.9,9.84204266]
[1770785658275,2.03751992,81.938,81.9,11.86118781]
[1770785658473,2.03751992,81.938,81.901,14.22900827]
[1770785658983,2.03751992,81.936,81.901,14.22900827]
[1770785659281,2.03751992,81.919,81.883,12.21244126]
[1770785659572,9.84204266,81.93,81.891,2.01914515]
[1770785659776,2.03751992,81.934,81.901,12.20986312]
[1770785660165,12.20370089,81.943,81.902,2.23466223]
[1770785660358,9.84204266,81.94,81.902,2.23466223]
[1770785660676,12.20420068,81.939,81.903,12.20956497]
[1770785661067,2.37037246,81.938,81.903,12.20956497]
[1770785662262,2.37037246,81.948,81.91,12.07670489]
[1770785662471,2.37037246,81.929,81.888,2.23466223]
[1770785662779,2.37037246,81.919,81.882,12.21262799]
[1770785662977,2.37037246,81.919,81.865,70.63800327]
[1770785662978,2.37037246,81.929,81.891,2.23466223]
[1770785663276,2.37037246,81.929,81.865,40.1]
[1770785663277,2.37037246,81.944,81.902,2.23466223]
[1770785663477,9.84204266,81.94,81.902,2.23466223]
[1770785663782,9.84204266,81.96,81.921,2.23466223]
[1770785663965,2.37037246,81.968,81.921,2.23466223]
[1770785664283,2.2219954,81.949,81.911,2.32661333]
[1770785664664,2.2219954,81.949,81.913,2.32661333]
[1770785664879,2.2219954,81.959,81.92,12.16865599]
[1770785665066,2.2219954,81.959,81.921,2.32661333]
[1770785665264,5.36086188,82.007,81.912,42.72878209]
[1770785665265,2.2219954,81.969,81.931,2.32661333]
[1770785665858,2.2219954,81.969,81.94,9.84204266]
[1770785666063,2.2219954,81.979,81.94,9.84204266]
[1770785666482,9.84204266,81.96,81.919,2.32661333]
[1770785666688,2.2219954,81.949,81.906,14.53569549]
[1770785666859,2.2219954,81.949,81.91,9.84204266]
[1770785667063,2.2219954,81.949,81.92,9.84204266]
[1770785667568,2.2219954,81.949,81.912,12.20810139]
[1770785667887,2.2219954,81.949,81.92,9.84204266]
[1770785668264,2.2219954,81.959,81.93,9.84204266]
[1770785668663,2.2219954,81.959,81.9,9.84204266]
[1770785668664,2.2219954,81.939,81.894,2.32661333]
[1770785669081,2.2219954,81.939,81.9,9.84204266]
[1770785669290,2.2219954,81.929,81.89,22.05341772]
[1770785669495,2.2219954,81.929,81.9,9.84204266]
[1770785669807,2.2219954,81.949,81.911,2.32661333]
[1770785670088,42.70480001,81.958,81.911,2.32661333]
[1770785670089,2.2219954,81.957,81.92,9.84204266]
[1770785670670,2.2219954,81.955,81.92,9.84204266]
[1770785670864,2.2219954,81.955,81.921,12.20688224]
[1770785671279,12.20166918,81.956,81.902,12.20961693]
[1770785671280,2.2219954,81.949,81.902,12.20961693]
[1770785671480,2.2219954,81.939,81.9,9.84204266]
[1770785671683,2.2219954,81.919,81.87,9.84204266]
[1770785671881,2.2219954,81.909,81.87,22.05640891]
[1770785672286,36.16,81.944,81.856,12.21649144]
[1770785672287,2.2219954,81.889,81.856,12.21649144]
[1770785672792,5.36086188,81.936,81.851,12.21732171]
[1770785672793,2.2219954,81.887,81.851,12.21732171]
[1770785673000,14.43236862,81.898,81.86,9.84204266]
[1770785673183,2.2219954,81.897,81.86,9.84204266]
[1770785673595,2.2219954,81.889,81.852,2.32661333]
[1770785673903,2.2219954,81.889,81.86,9.84204266]
[1770785674110,22.3,81.89,81.86,9.84204266]
[1770785674283,22.3,81.89,81.852,2.32661333]
[1770785674603,2.2219954,81.889,81.851,12.21732171]
[1770785675097,2.2219954,81.887,81.851,12.21732171]
[1770785675900,2.2219954,81.879,81.85,40.14]
[1770785676405,32.14204266,81.89,81.85,40.14]
[1770785676406,2.2219954,81.889,81.85,49.98204266]
[1770785676579,2.2219954,81.879,81.85,40.14]
[1770785676997,2.2219954,81.877,81.84,9.84204266]
[1770785677199,2.2219954,81.869,81.82,9.84204266]
[1770785677503,2.2219954,81.869,81.831,12.2202401]
[1770785677703,12.21329294,81.878,81.841,2.32661333]
[1770785677904,2.2219954,81.877,81.841,2.32661333]
[1770785678287,2.2219954,81.869,81.831,2.32661333]
[1770785678487,2.2219954,81.869,81.83,9.84204266]
[1770785678780,2.2219954,81.869,81.828,2.32661333]
[1770785679001,2.2219954,81.867,81.821,2.32661333]
[1770785679398,2.2219954,81.867,81.83,9.84204266]
[1770785679576,2.2219954,81.859,81.822,12.22165187]
[1770785679781,2.2219954,81.859,81.822,14.5482652]
[1770785680001,2.2219954,81.859,81.83,9.84204266]
[1770785681087,12.21627696,81.858,81.83,9.84204266]
[1770785681285,2.2219954,81.857,81.82,9.84204266]
[1770785681485,2.2219954,81.839,81.781,2.32661333]
[1770785681697,2.2219954,81.839,81.798,2.32661333]
[1770785681899,2.2219954,81.839,81.8,9.84204266]
[1770785682803,2.2219954,81.829,81.782,42.79670342]
[1770785683001,2.2219954,81.819,81.782,30.56907387]
[1770785683199,2.2219954,81.819,81.78,9.84204266]
[1770785683805,22.3,81.82,81.8,9.84204266]
[1770785684112,22.3,81.82,81.772,42.80193708]
[1770785684113,2.2219954,81.852,81.811,2.32661333]
[1770785684287,2.2219954,81.852,81.82,9.84204266]
[1770785684492,2.2219954,81.851,81.82,9.84204266]
[1770785685192,9.84204266,81.83,81.797,2.32661333]
[1770785685404,2.2219954,81.829,81.786,2.32661333]
[1770785685603,2.2219954,81.819,81.792,12.22607138]
[1770785685908,2.2219954,81.819,81.78,9.84204266]
[1770785685909,2.2219954,81.819,81.785,12.22708291]
[1770785686406,2.2219954,81.819,81.771,0.2552332]
[1770785686407,9.84204266,81.81,81.778,12.22810137]
[1770785686609,2.2219954,81.809,81.771,0.2552332]
[1770785686800,2.2219954,81.799,81.771,0.2552332]
[1770785687198,2.2219954,81.789,81.771,0.2552332]
[1770785688111,2.2219954,81.799,81.771,0.2552332]
[1770785688316,2.2219954,81.808,81.773,2.32661333]
[1770785688515,2.2219954,81.809,81.772,12.22912488]
[1770785688702,2.2219954,81.799,81.771,0.2552332]
[1770785689309,12.22451566,81.803,81.771,0.2552332]
[1770785689795,2.2219954,81.799,81.771,0.2552332]
[1770785689997,2.2219954,81.809,81.773,2.32661333]
[1770785690196,12.22374339,81.808,81.773,2.32661333]
[1770785690396,2.2219954,81.809,81.78,9.84204266]
[1770785690813,9.84204266,81.82,81.781,2.39640072]
[1770785691001,2.2112992,81.819,81.781,2.39640072]
[1770785691199,2.2112992,81.819,81.782,12.22762955]
[1770785691396,12.22085741,81.828,81.783,2.39640072]
[1770785691798,12.22085741,81.828,81.782,42.79670342]
[1770785691799,2.2112992,81.83,81.791,2.39640072]
[1770785693097,2.2112992,81.828,81.791,2.39640072]
[1770785693302,2.2112992,81.828,81.79,9.84204266]
[1770785693501,2.2112992,81.828,81.792,2.39640072]
[1770785693815,2.2112992,81.826,81.791,12.22628406]
[1770785694008,2.2112992,81.847,81.811,2.39640072]
[1770785694596,2.2112992,81.847,81.82,9.84204266]
[1770785694797,2.2112992,81.847,81.811,2.39640072]
[1770785695320,14.42924857,81.847,81.811,2.39640072]
[1770785696219,36.24,81.858,81.813,2.39640072]
[1770785696423,12.2164262,81.857,81.821,2.39640072]
[1770785696597,2.2112992,81.856,81.812,12.22314574]
[1770785696800,2.2112992,81.849,81.812,14.61954646]
[1770785697225,2.2112992,81.839,81.807,12.22379965]
[1770785697422,2.2112992,81.856,81.83,9.84204266]
[1770785697623,2.2112992,81.856,81.813,2.39640072]
[1770785697815,2.2112992,81.849,81.813,2.39640072]
[1770785698124,2.2112992,81.839,81.804,12.2243411]
[1770785698303,12.21772609,81.849,81.811,2.39640072]
[1770785698625,2.2112992,81.839,81.805,2.39640072]
[1770785698831,2.2112992,81.839,81.81,9.84204266]
[1770785698999,2.2112992,81.849,81.81,12.23844338]
[1770785699203,2.2112992,81.849,81.811,2.39640072]
[1770785699501,2.2112992,81.873,81.831,2.39640072]
[1770785699706,2.2112992,81.871,81.831,2.39640072]
[1770785700023,2.2112992,81.881,81.85,9.83555314]
[1770785700214,2.2112992,81.901,81.861,2.39640072]
[1770785700403,12.21001221,81.9,81.861,2.39640072]
[1770785700602,2.2112992,81.889,81.852,12.21717245]
[1770785700908,2.2112992,81.879,81.85,12.21735854]
[1770785701109,2.2112992,81.879,81.847,12.21791802]
[1770785701528,42.73504273,81.9,81.83,2.39640072]
[1770785701529,2.2112992,81.869,81.83,2.39640072]
[1770785701833,9.83555314,81.86,81.829,2.39640072]
[1770785702012,2.2112992,81.88,81.852,12.21717245]
[1770785702210,2.2112992,81.878,81.846,12.21794671]
[1770785702420,2.2112992,81.878,81.844,12.21836664]
[1770785703217,2.2112992,81.878,81.85,9.83555314]
[1770785703424,2.2112992,81.878,81.844,14.61476736]
[1770785704133,12.2131284,81.88,81.82,9.83555314]
[1770785704134,12.04685234,81.86,81.82,9.83555314]
[1770785704311,12.04685234,81.86,81.791,167.8]
[1770785704312,2.2112992,81.849,81.817,12.22237155]
[1770785704817,2.2112992,81.849,81.81,12.23195386]
[1770785704818,2.2112992,81.849,81.81,9.83555314]
[1770785705025,2.2112992,81.839,81.79,9.83555314]
[1770785705225,2.2112992,81.829,81.796,12.22544688]
[1770785705425,2.2112992,81.819,81.787,12.22686513]
[1770785705623,2.2112992,81.819,81.787,42.79407018]
[1770785705809,9.83555314,81.83,81.79,12.23195386]
[1770785705810,2.2112992,81.829,81.79,12.23195386]
[1770785706125,2.2112992,81.829,81.791,2.39640072]
[1770785706429,26.49,81.837,81.801,2.39640072]
[1770785706624,2.2112992,81.829,81.792,12.22613458]
[1770785707009,9.83555314,81.83,81.793,2.39640072]
[1770785707228,26.49,81.837,81.801,2.39640072]
[1770785707636,12.21956107,81.836,81.801,2.39640072]
[1770785707814,26.49,81.837,81.811,2.39640072]
[1770785708010,26.49,81.837,81.82,9.83555314]
[1770785708526,26.49,81.837,81.811,2.39640072]
[1770785708527,26.49,81.837,81.816,12.22249862]
[1770785709031,2.2112992,81.836,81.8,9.83555314]
[1770785709223,2.2112992,81.836,81.79,12.23195386]
[1770785709429,2.2112992,81.829,81.796,12.22540545]
[1770785710111,2.2112992,81.829,81.8,9.83555314]
[1770785710316,12.22075573,81.828,81.793,12.22594503]
[1770785710631,2.2112992,81.829,81.8,9.83555314]
[1770785710822,2.2112992,81.829,81.794,2.39640072]
[1770785711024,2.2112992,81.829,81.793,12.22594503]
[1770785711025,26.49,81.837,81.801,2.39640072]
[1770785711412,2.2112992,81.835,81.793,12.22594503]
[1770785711627,12.21956107,81.836,81.793,12.22594503]
[1770785711628,2.2112992,81.829,81.793,12.22594503]
[1770785711934,2.2112992,81.829,81.794,2.39640072]
[1770785712109,26.49,81.837,81.81,9.83555314]
[1770785712522,2.2112992,81.835,81.806,12.22395085]
[1770785712718,26.49,81.837,81.81,24.45531214]
[1770785713307,26.49,81.837,81.811,2.39640072]
[1770785714911,26.49,81.837,81.82,9.84247002]
[1770785715111,26.49,81.837,81.82,12.23887074]
[1770785715312,2.2112992,81.866,81.831,2.39640072]
[1770785715513,2.2112992,81.864,81.83,9.84247002]
[1770785716029,2.2112992,81.864,81.83,12.23887074]
[1770785716335,2.2112992,81.874,81.831,2.39640072]
[1770785716630,12.21375106,81.875,81.82,9.84247002]
[1770785716631,2.2112992,81.859,81.82,9.84247002]
[1770785716810,9.84247002,81.85,81.81,9.84247002]
[1770785717022,2.2112992,81.849,81.81,12.22336603]
[1770785717417,2.2112992,81.829,81.792,12.22610591]
[1770785717831,2.2112992,81.829,81.765,40.1]
[1770785717832,9.84247002,81.82,81.785,12.22706477]
[1770785718039,103.8383542,81.858,81.771,30.82810386]
[1770785718040,9.84247002,81.81,81.772,2.39640072]
[1770785718220,2.2112992,81.809,81.776,12.22846535]
[1770785718738,2.2112992,81.809,81.771,12.48445033]
[1770785718947,9.84247002,81.81,81.771,12.48445033]
[1770785718948,2.2112992,81.807,81.771,12.48445033]
[1770785719122,2.2112992,81.807,81.771,14.88085105]
[1770785719324,2.2112992,81.807,81.78,9.84247002]
[1770785719740,2.2112992,81.818,81.79,9.84247002]
[1770785720044,2.2112992,81.839,81.8,2.39640072]
[1770785720247,2.2112992,81.839,81.8,12.23887074]
[1770785720441,2.4271452,81.829,81.79,9.84247002]
[1770785720643,2.4271452,81.839,81.81,9.84247002]
[1770785720840,2.4271452,81.827,81.791,12.22628406]
[1770785722950,2.4271452,81.825,81.79,9.84247002]
[1770785723248,2.4271452,81.825,81.79,12.23994138]
[1770785723453,2.4271452,81.825,81.79,9.84247002]
[1770785723622,9.84247002,81.82,81.782,12.22762955]
[1770785723830,2.4271452,81.809,81.781,12.22766809]
[1770785724226,2.29037418,81.819,81.782,2.4571017]
[1770785724839,2.29037418,81.819,81.781,12.22766809]
[1770785724840,2.29037418,81.809,81.771,0.2552332]
[1770785725649,2.29037418,81.809,81.772,2.4571017]
[1770785725952,2.29037418,81.809,81.78,12.29957172]
[1770785726353,2.29037418,81.827,81.79,9.84247002]
[1770785726648,14.51142861,81.826,81.791,2.4571017]
[1770785726830,2.29037418,81.825,81.791,2.4571017]
[1770785727337,2.29037418,81.819,81.781,2.4571017]
[1770785727733,2.29037418,81.819,81.772,2.4571017]
[1770785728337,2.29037418,81.819,81.787,12.22684972]
[1770785728738,2.29037418,81.819,81.791,12.22628406]
[1770785728938,2.29037418,81.819,81.79,9.84247002]
[1770785729146,12.22224938,81.818,81.79,9.84247002]
[1770785729349,12.22224938,81.818,81.79,22.06887896]
[1770785729651,14.51262356,81.818,81.787,2.4571017]
[1770785729860,2.29037418,81.817,81.787,2.4571017]
[1770785730048,2.29037418,81.809,81.772,12.22902961]
[1770785730246,42.77787283,81.818,81.771,0.2552332]
[1770785730247,2.29037418,81.799,81.771,0.2552332]
[1770785730639,9.84247002,81.81,81.773,12.22889904]
[1770785730943,2.29037418,81.809,81.78,9.84247002]
[1770785731142,12.22374339,81.808,81.771,0.2552332]
[1770785731458,2.29037418,81.799,81.771,0.2552332]
[1770785733161,2.29037418,81.789,81.771,0.2552332]
[1770785733359,9.84247002,81.8,81.771,0.2552332]
[1770785733360,2.29037418,81.787,81.771,0.2552332]
[1770785733662,12.22606488,81.793,81.771,0.2552332]
[1770785734042,2.29037418,81.792,81.76,9.84247002]
[1770785735059,2.29037418,81.792,81.759,12.23104818]
[1770785735260,2.29037418,81.802,81.771,12.22927443]
[1770785735556,36.16,81.808,81.772,2.4571017]
[1770785735557,14.5151636,81.801,81.772,2.4571017]
[1770785735753,14.5151636,81.801,81.771,12.22927443]
[1770785735754,2.29037418,81.829,81.791,2.4571017]
[1770785735935,2.29037418,81.838,81.801,2.4571017]
[1770785736131,2.29037418,81.838,81.792,2.4571017]
[1770785736336,2.29037418,81.838,81.8,9.84247002]
[1770785736558,2.29037418,81.838,81.792,2.4571017]
[1770785737150,2.29037418,81.836,81.793,12.2259851]
[1770785737337,2.29037418,81.836,81.8,9.84247002]
[1770785737764,2.29037418,81.829,81.794,2.4571017]
[1770785737955,2.29037418,81.829,81.8,9.84247002]
[1770785738256,14.50978593,81.837,81.801,2.4571017]
[1770785738454,2.29037418,81.836,81.81,9.84247002]
[1770785738756,2.29037418,81.836,81.801,2.4571017]
[1770785738954,2.29037418,81.836,81.8,9.84247002]
[1770785739255,2.29037418,81.834,81.8,9.84247002]
[1770785739442,2.29037418,81.829,81.785,12.22704378]
[1770785739637,9.84247002,81.82,81.785,12.22704378]
[1770785739853,2.29037418,81.809,81.77,12.29957172]
[1770785740155,2.29037418,81.819,81.78,12.29957172]
[1770785740354,2.29037418,81.819,81.783,12.22740508]
[1770785740561,2.29037418,81.819,81.784,2.4571017]
[1770785741140,103.86753833,81.835,81.753,39.94]
[1770785741141,9.84247002,81.83,81.79,9.84247002]
[1770785741342,2.29037418,81.828,81.791,2.4571017]
[1770785741550,2.29037418,81.828,81.8,12.29957172]
[1770785742869,2.29037418,81.819,81.765,2.4571017]
[1770785743057,2.29037418,81.809,81.77,9.84247002]
[1770785743240,2.29037418,81.817,81.781,2.4571017]
[1770785743440,2.29037418,81.827,81.79,9.84247002]
[1770785743644,2.29037418,81.827,81.791,2.4571017]
[1770785743852,2.29037418,81.819,81.775,12.22855504]
[1770785744169,2.29037418,81.809,81.775,12.22855504]
[1770785745461,2.29037418,81.808,81.775,12.22855504]
[1770785745959,2.29037418,81.808,81.78,9.84247002]
[1770785746147,2.29037418,81.808,81.775,12.22855504]
[1770785746967,12.22290847,81.814,81.781,2.4571017]
[1770785747464,12.22290847,81.814,81.78,9.84247002]
[1770785747465,12.2218435,81.821,81.791,2.4571017]
[1770785747646,2.29037418,81.819,81.781,2.4571017]
[1770785748047,2.29037418,81.819,81.79,9.84247002]
[1770785748574,2.29037418,81.817,81.783,2.4571017]
[1770785748856,30.55111494,81.831,81.791,2.4571017]
[1770785748857,2.29037418,81.822,81.791,2.4571017]
[1770785749165,2.29037418,81.822,81.79,9.84247002]
[1770785749358,2.29037418,81.822,81.783,2.4571017]
[1770785749564,2.29037418,81.822,81.79,9.84247002]
[1770785749879,2.29037418,81.822,81.783,2.4571017]
[1770785750166,2.29037418,81.822,81.79,9.84247002]
[1770785750761,2.48772843,81.819,81.784,12.22733052]
[1770785751163,2.48772843,81.819,81.79,9.84247002]
[1770785752570,14.70997781,81.818,81.785,2.43848571]
[1770785752862,2.48772843,81.827,81.8,9.84247002]
[1770785753267,2.48772843,81.825,81.791,2.43848571]
[1770785754258,2.48772843,81.825,81.8,9.84247002]
[1770785755070,2.48772843,81.825,81.792,12.22613458]
[1770785755369,2.48772843,81.825,81.793,2.43848571]
[1770785755569,2.47215037,102.43,81.793,2.43848571]
[1770785755570,2.48772843,81.862,81.793,2.43848571]
[1770785755783,2.48772843,81.87,81.823,2.43848571]
[1770785755951,2.48772843,81.869,81.831,2.43848571]
[1770785756681,2.48772843,81.867,81.831,14.65872339]
[1770785756879,2.48772843,81.867,81.832,2.43848571]
[1770785757084,2.48772843,81.867,81.831,12.22023768]
[1770785757085,2.48772843,81.867,81.841,2.43848571]
[1770785757284,2.48772843,81.878,81.841,2.43848571]
[1770785757658,33.83243112,81.884,81.85,9.84247002]
[1770785757866,2.48772843,81.883,81.851,2.43848571]
[1770785758192,12.33019845,81.88,81.851,2.43848571]
[1770785758866,2.48772843,81.859,81.823,12.22148269]
[1770785759080,2.48772843,81.849,81.82,2.43848571]
[1770785759462,2.48772843,81.849,81.821,12.22180124]
[1770785759662,2.48772843,81.859,81.822,2.43848571]
[1770785759875,2.48772843,81.849,81.813,12.22295699]
[1770785760260,2.48772843,81.859,81.822,2.43848571]
[1770785760579,2.48772843,81.869,81.831,2.43848571]
[1770785760884,2.48772843,81.858,81.821,2.43848571]
[1770785761260,2.48772843,81.858,81.821,14.66028059]
[1770785761468,9.84247002,81.85,81.822,2.43848571]
[1770785761682,2.48772843,81.849,81.815,12.22262772]
[1770785761880,2.48772843,81.849,81.826,12.22102565]
[1770785762182,2.48772843,81.859,81.826,12.22103801]
[1770785762484,2.48772843,81.868,81.832,2.43848571]
[1770785763073,2.48772843,81.866,81.833,12.22000904]
[1770785763585,2.48772843,81.859,81.821,2.43848571]
[1770785763981,2.48772843,81.859,81.822,2.43848571]
[1770785765083,12.21627696,81.858,81.824,2.43848571]
[1770785765394,9.84247002,81.87,81.831,2.43848571]
[1770785765684,30.533345,81.878,81.823,12.22150251]
[1770785765685,12.21245716,81.884,81.851,2.43848571]
[1770785765891,12.21245716,81.884,81.86,9.84247002]
[1770785766867,12.21045947,81.897,81.861,2.43848571]
[1770785767067,2.48772843,81.896,81.851,2.43848571]
[1770785767287,9.84247002,81.88,81.845,12.21815262]
[1770785767487,2.48772843,81.881,81.851,2.43848571]
[1770785767797,2.48772843,81.881,81.814,5.13032502]
[1770785767798,12.21045947,81.897,81.863,2.43848571]
[1770785768089,36.16,81.902,81.862,12.21568004]
[1770785768090,2.48772843,81.943,81.891,2.43848571]
[1770785768282,2.48772843,81.943,81.911,2.43848571]
[1770785768474,6.36497278,81.948,81.92,12.28095573]
[1770785768676,6.36497278,81.948,81.921,2.43848571]
[1770785768881,12.20139873,81.958,81.93,9.84247002]
[1770785769177,2.48772843,81.963,81.931,2.43848571]
[1770785769483,2.48772843,81.963,81.932,2.43848571]
[1770785769686,0.2,81.97,81.94,9.84247002]
[1770785769871,0.2,81.97,81.931,12.20539234]
[1770785769872,0.2,81.97,81.95,9.84247002]
[1770785770078,2.48772843,81.959,81.92,9.84247002]
[1770785770285,2.48772843,81.959,81.921,2.43848571]
[1770785770487,12.19973404,81.969,81.884,39.62]
[1770785770488,2.48772843,81.949,81.91,9.84247002]
[1770785770688,9.84247002,81.96,81.921,2.43848571]
[1770785770868,2.48772843,81.959,81.921,2.43848571]
[1770785771075,12.20271144,81.949,81.921,2.43848571]
[1770785771389,12.20018056,81.966,81.93,9.84247002]
[1770785771566,2.48772843,81.959,81.922,12.20673323]
[1770785771769,14.68790899,81.966,81.931,2.43848571]
[1770785771976,2.48772843,81.965,81.931,2.43848571]
[1770785772188,0.2,81.97,81.94,9.84247002]
[1770785772485,0.2,81.97,81.95,9.84247002]
[1770785772690,1e-08,81.97,81.961,2.43848571]
[1770785773074,1e-08,81.97,81.963,2.43848571]
[1770785773268,1e-08,81.97,81.954,12.20191816]
[1770785773474,1e-08,81.97,81.942,2.43848571]